fUSD/lending_fUSD_20240331
["ID","MTS","AMOUNT","RATE_DAILY","PERIOD"]
[321154837,1711917040150,-151.0,0.000511,120]
[321154838,1711917040158,-151.0,0.000511,120]
[321154839,1711917040168,-430.687383,0.000511,120]
[321154840,1711917040179,-151.0,0.00051123,120]
[321154841,1711917040188,-173.08702911,0.00051459,60]
[321154842,1711917040197,-800.0,0.0005149,120]
[321154843,1711917040206,-483.14667781,0.000515,2]
[321154844,1711917040215,-1949.46635718,0.00051776,2]
[321154845,1711917040354,-808.26,0.0005178,72]
[321154846,1711917040389,-775.45751,0.00051786,58]
[321154847,1711917040398,-158.49,0.00052138,120]
[321154848,1711917040407,-8849.64008345,0.00052221,2]
[321154849,1711917040415,-439.91,0.00052291,120]
[321154850,1711917040425,-2000.0,0.000525,120]
[321154851,1711917040434,-151.0,0.00052685,120]
[321154852,1711917040443,-217.4,0.0005279,2]
[321154853,1711917040452,-32777.91495257,0.000528,7]
[321154854,1711917040461,-161.63,0.000528,30]
[321154855,1711917040470,-341.06,0.00052856,2]
[321154856,1711917040479,-362.47,0.00052957,120]
[321154857,1711917040489,-278.10387505,0.00053102,30]
[321154858,1711917040498,-2262.7,0.00053428,117]
[321154859,1711917040507,-1053.0,0.000535,7]
[321154860,1711917040516,-193.37254621,0.0005375,30]
[321154861,1711917040524,-150.5,0.0005377,15]
[321154862,1711917040534,-150.5,0.0005378,15]
[321154863,1711917040543,-150.5,0.0005379,15]
[321154864,1711917040552,-154.11,0.0005379,120]
[321154865,1711917040562,-217.4,0.0005379,2]
[321154866,1711917040571,-583.5711546,0.0005379,2]
[321154867,1711917040580,-284303.30284951,0.000538,2]
[321154868,1711917040589,-153.44,0.000538,14]
[321154869,1711917040598,-198.628818,0.000538,30]
[321154870,1711917040607,-178.148409,0.000538,120]
[321154871,1711917040616,-151.0,0.000538,120]
[321154872,1711917040625,-288.858886,0.000538,120]
[321154873,1711917040636,-301.194797,0.000538,120]
[321154874,1711917040645,-430.687383,0.000538,120]
[321154875,1711917040655,-210.27979924,0.000539,52]
[321154876,1711917040664,-207.20141006,0.000539,120]
[321154877,1711917040673,-154.11,0.0005399,120]
[321154878,1711917040682,-154.11,0.0005399,120]
[321154879,1711917040692,-154.11,0.0005399,120]
[321154880,1711917040701,-154.11,0.0005399,120]
[321154881,1711917040710,-154.11,0.0005399,120]
[321154882,1711917040719,-154.11,0.0005399,120]
[321154883,1711917040728,-154.11,0.0005399,120]
[321154884,1711917040738,-217.4,0.0005399,2]
[321154885,1711917040749,-583.5711546,0.0005399,2]
[321154886,1711917040759,-368.4904415,0.00053997,2]
[321154887,1711917040768,-1421906.81774817,0.00054,36]
[321154888,1711917040777,-151.0,0.00054,120]
[321154889,1711917040786,-3748126.78,0.00054,4]
[321154890,1711917040796,-1000.0,0.00054,7]
[321154891,1711917040805,-430.687383,0.00054,120]
[321154892,1711917040814,-153.21,0.000541,7]
[321154893,1711917040825,-153.21,0.000541,7]
[321154894,1711917040835,-1048.86,0.000541,7]
[321154895,1711917040845,-1048.86,0.000541,7]
[321154896,1711917040855,-1048.86,0.000541,7]
[321154897,1711917040865,-1048.86,0.000541,7]
[321154898,1711917040874,-1048.86,0.000541,7]
[321154899,1711917040883,-1048.86,0.000541,7]
[321154900,1711917040892,-1048.86,0.000541,7]
[321154901,1711917040901,-1048.86,0.000541,7]
[321154902,1711917040910,-1048.86,0.000541,7]
[321154903,1711917040921,-1048.86,0.000541,7]
[321154904,1711917040930,-1048.86,0.000541,7]
[321154905,1711917040939,-1048.86,0.000541,7]
[321154906,1711917040949,-1048.86,0.000541,7]
[321154907,1711917040958,-1048.86,0.000541,7]
[321154908,1711917040967,-1048.86,0.000541,7]
[321154909,1711917040976,-1048.86,0.000541,7]
[321154910,1711917040986,-1048.86,0.000541,7]
[321154911,1711917040995,-1048.86,0.000541,7]
[321154912,1711917041005,-1048.86,0.000541,7]
[321154913,1711917041015,-1048.86,0.000541,7]
[321154914,1711917041024,-200.0,0.00054139,120]
[321154915,1711917041033,-152.30659038,0.00054194,60]
[321154916,1711917041043,-1000.0,0.000542,7]
[321154917,1711917041052,-1000.0,0.000542,7]
[321154918,1711917041061,-1949.46635718,0.00054201,2]
[321154919,1711917041070,-158.54,0.00054219,2]
[321154920,1711917041079,-151.0,0.00054247,120]
[321154921,1711917041088,-158.54,0.00054287,2]
[321154922,1711917041096,-158.54,0.00054355,2]
[321154923,1711917041105,-158.54,0.00054423,2]
[321154924,1711917041114,-158.54,0.0005449,2]
[321154925,1711917041123,-166.1543771,0.00054694,120]
[321154926,1711917041133,-217.21404258,0.00054694,2]
[321154927,1711917041142,-8849.64008345,0.00054756,2]
[321154928,1711917041152,-185.79,0.00054763,15]
[321154929,1711917041161,-171.0,0.00054764,15]
[321154930,1711917041171,-150.5,0.00054764,15]
[321154931,1711917041183,-150.5,0.00054773,15]
[321154932,1711917041193,-171.0,0.00054774,15]
[321154933,1711917041201,-150.5,0.00054774,15]
[321154934,1711917041211,-150.5,0.00054783,15]
[321154935,1711917041219,-151.86,0.00054783,15]
[321154936,1711917041229,-154.11,0.00054783,120]
[321154937,1711917041238,-154.11,0.00054783,120]
[321154938,1711917041247,-154.11,0.00054783,120]
[321154939,1711917041259,-171.0,0.00054784,15]
[321154940,1711917041268,-150.5,0.00054784,15]
[321154941,1711917041277,-754929.81736254,0.00054789,7]
[321154942,1711917041462,-1962.35184589,0.00054789,7]
[321154943,1711917041477,-13905.73265064,0.00054789,7]
[321154944,1711917041489,-4438.32668102,0.00054789,7]
[321154945,1711917041508,-8318.99958921,0.00054789,7]
[321154946,1711917041694,-290.68792161,0.00042172,4]
[321154947,1711917041703,-430.687383,0.00042208,14]
[321154948,1711917041712,-151.0,0.00043513,14]
[321154949,1711917041721,-430.687383,0.00043513,14]
[321154950,1711917041730,-151.0,0.000511,120]
[321154951,1711917041740,-430.687383,0.000511,120]
[321154952,1711917041751,-22.61963842,0.000538,120]
[321154953,1711917041857,-151.0,0.00042208,14]
[321154954,1711917041866,-151.0,0.00043513,14]
[321154955,1711917041875,-151.0,0.000511,120]
[321154956,1711917041884,-125.81623878,0.000538,120]
[321154960,1711917042915,-2.5641228,0.000538,120]
[321154961,1711917042925,-430.687383,0.000538,120]
[321154962,1711917042934,-162.956784,0.000538,120]
[321154963,1711917042944,-151.0,0.00054,120]
[321154964,1711917042954,-430.687383,0.00054,120]
[321154965,1711917042964,-2666.7612272,0.00054789,7]
[321154966,1711917043078,-16090.68342964,0.00054789,7]
[321154967,1711917043137,-5412.52327491,0.00054789,7]
[321154968,1711917043195,-1396.94718164,0.00054789,7]
[321154969,1711917043210,-2598.35195662,0.00054789,7]
[321154970,1711917043222,-3536.98677094,0.00054789,7]
[321154971,1711917043234,-1973.8977209,0.00054789,7]
[321155037,1711917047723,-462.86938457,0.00054789,7]
[321155038,1711917047780,-599.19,0.00054789,7]
[321155039,1711917047838,-14904.68745,0.00054789,7]
[321155040,1711917047953,-470.20936806,0.00054789,7]
[321155041,1711917047965,-398.0,0.00054789,7]
[321155042,1711917048154,-10168.17367493,0.00054789,7]
[321155062,1711918060801,-536.58,0.00032999,4]
[321155063,1711918060823,-25994.61996068,0.00032999,4]
[321155066,1711918156785,-492.16593402,0.00032999,4]
[321155067,1711918156805,-28668.46142366,0.00032999,4]
[321155090,1711918232054,-264.75,0.00033,3]
[321155091,1711918232164,-85.25,0.00033,3]
[321155092,1711918232173,-400.0,0.00035,3]
[321155093,1711918232183,-120.53198958,0.00037808,2]
[321155094,1711918232194,-33.92801042,0.00037808,2]
[321155095,1711918232204,-152.34,0.00037808,2]
[321155096,1711918232213,-523.29198958,0.0004,120]
[321155145,1711918238103,-1022.43950181,0.0004,120]
[321155147,1711918238112,-3008.7428,0.000427,2]
[321155149,1711918238122,-419.86,0.000428,4]
[321155151,1711918238131,-419.86,0.000428,4]
[321155153,1711918238139,-419.86,0.000428,4]
[321155155,1711918238149,-419.86,0.000428,4]
[321155157,1711918238157,-419.86,0.000428,4]
[321155159,1711918238166,-419.86,0.000428,4]
[321155161,1711918238176,-419.86,0.000428,4]
[321155163,1711918238185,-419.86,0.000428,4]
[321155165,1711918238194,-419.86,0.000428,4]
[321155167,1711918238203,-419.86,0.000428,4]
[321155169,1711918238212,-419.86,0.000428,4]
[321155171,1711918238221,-419.86,0.000428,4]
[321155173,1711918238230,-419.86,0.000428,4]
[321155175,1711918238239,-419.86,0.000428,4]
[321155177,1711918238249,-419.86,0.000428,4]
[321155179,1711918238258,-419.86,0.000428,4]
[321155181,1711918238267,-419.86,0.000428,4]
[321155183,1711918238276,-419.86,0.000428,4]
[321155185,1711918238285,-419.86,0.000428,4]
[321155187,1711918238294,-419.86,0.000428,4]
[321155189,1711918238303,-153.25,0.000428,4]
[321155191,1711918238312,-154.46,0.00043642,2]
[321155193,1711918238322,-162.03426665,0.00045869,30]
[321155195,1711918238331,-154.67715993,0.00046662,30]
[321155197,1711918238340,-600.0,0.00048,49]
[321155199,1711918238349,-7677.11,0.00048078,2]
[321155201,1711918238358,-1280.6,0.00048078,2]
[321155203,1711918238367,-893.5695,0.000483,2]
[321155205,1711918238376,-419.86,0.000484,6]
[321155207,1711918238385,-419.86,0.000484,6]
[321155209,1711918238395,-419.86,0.000484,6]
[321155211,1711918238403,-419.86,0.000484,6]
[321155213,1711918238412,-419.86,0.000484,6]
[321155215,1711918238421,-419.86,0.000484,6]
[321155217,1711918238430,-419.86,0.000484,6]
[321155219,1711918238439,-419.86,0.000484,6]
[321155222,1711918238448,-419.86,0.000484,6]
[321155224,1711918238457,-419.86,0.000484,6]
[321155228,1711918238466,-419.86,0.000484,6]
[321155231,1711918238475,-419.86,0.000484,6]
[321155232,1711918238484,-419.86,0.000484,6]
[321155236,1711918238493,-419.86,0.000484,6]
[321155239,1711918238503,-419.86,0.000484,6]
[321155241,1711918238512,-419.86,0.000484,6]
[321155244,1711918238521,-419.86,0.000484,6]
[321155246,1711918238532,-419.86,0.000484,6]
[321155247,1711918238544,-419.86,0.000484,6]
[321155248,1711918238553,-419.86,0.000484,6]
[321155249,1711918238562,-153.25,0.000484,6]
[321155250,1711918238571,-153.25,0.000484,6]
[321155252,1711918238581,-599.99999905,0.00049,50]
[321155254,1711918238590,-239.37,0.00049447,2]
[321155256,1711918238599,-154.46,0.00049476,2]
[321155258,1711918238609,-314.07136222,0.0004949,10]
[321155260,1711918238618,-161.27445176,0.00049772,30]
[321155262,1711918238627,-600.0,0.0005,51]
[321155264,1711918238636,-152.34,0.00050205,2]
[321155266,1711918238645,-12851.89314074,0.00050996,120]
[321155268,1711918238654,-600.0,0.00051,52]
[321155270,1711918238663,-500.0,0.00051028,2]
[321155272,1711918238672,-23900.0,0.00051047,2]
[321155274,1711918238681,-8523.8,0.00051096,2]
[321155276,1711918238690,-189.66,0.00051114,120]
[321155278,1711918238699,-293.27,0.00051132,120]
[321155280,1711918238709,-250.0,0.00051275,120]
[321155282,1711918238717,-185.66,0.00051279,120]
[321155284,1711918238726,-916.6,0.000513,120]
[321155286,1711918238735,-1852.42,0.00051315,2]
[321155288,1711918238744,-250.0,0.0005133,112]
[321155290,1711918238753,-680.0,0.00051346,120]
[321155292,1711918238763,-155.78600416,0.00051453,60]
[321155294,1711918238772,-320.0,0.00051575,120]
[321155296,1711918238782,-239.37,0.00051711,2]
[321155298,1711918238790,-154.66,0.00051877,2]
[321155300,1711918238800,-250.0,0.00051878,120]
[321155302,1711918238809,-241.64,0.00052026,120]
[321155304,1711918238818,-169.07,0.00052267,2]
[321155306,1711918238827,-626.13543577,0.00052692,30]
[321155308,1711918238836,-12851.89314074,0.00052793,120]
[321155310,1711918238845,-165.0,0.00053,120]
[321155312,1711918238854,-775.67608756,0.00053121,4]
[321155314,1711918238863,-445.45527983,0.00053122,4]
[321155316,1711918238872,-12262.2588494,0.00053123,10]
[321155318,1711918238881,-545.80604823,0.00053691,4]
[321155320,1711918238890,-500.0,0.000539,2]
[321155322,1711918238899,-239.37,0.00053975,2]
[321155324,1711918238908,-232.55765196,0.00053999,4]
[321155326,1711918238917,-1357.85391562,0.00054,120]
[321155328,1711918238926,-824.0,0.00054,60]
[321155330,1711918238935,-1261.0,0.00054,120]
[321155332,1711918238944,-1261.0,0.00054,120]
[321155334,1711918238952,-1261.0,0.00054,120]
[321155336,1711918238961,-1261.0,0.00054,120]
[321155338,1711918238970,-1261.0,0.00054,120]
[321155340,1711918238979,-1261.0,0.00054,120]
[321155342,1711918238989,-1261.0,0.00054,120]
[321155344,1711918238997,-1261.0,0.00054,120]
[321155346,1711918239006,-1261.0,0.00054,120]
[321155348,1711918239015,-1261.0,0.00054,120]
[321155350,1711918239025,-1292.17354327,0.00054,2]
[321155352,1711918239035,-11497.1362334,0.00054,2]
[321155354,1711918239043,-185.66,0.00054019,120]
[321155356,1711918239053,-706.56929154,0.00054098,60]
[321155357,1711918239061,-247.27160165,0.00054098,30]
[321155359,1711918239071,-409.2075491,0.00054098,4]
[321155362,1711918239080,-1036.20158006,0.00054099,4]
[321155363,1711918239089,-12737.05031306,0.00054099,2]
[321155365,1711918239098,-419.86,0.000541,7]
[321155367,1711918239107,-419.86,0.000541,7]
[321155368,1711918239117,-419.86,0.000541,7]
[321155369,1711918239126,-419.86,0.000541,7]
[321155370,1711918239135,-419.86,0.000541,7]
[321155371,1711918239144,-419.86,0.000541,7]
[321155372,1711918239154,-419.86,0.000541,7]
[321155373,1711918239163,-419.86,0.000541,7]
[321155374,1711918239173,-419.86,0.000541,7]
[321155375,1711918239182,-419.86,0.000541,7]
[321155376,1711918239192,-419.86,0.000541,7]
[321155377,1711918239201,-419.86,0.000541,7]
[321155378,1711918239211,-419.86,0.000541,7]
[321155379,1711918239220,-419.86,0.000541,7]
[321155380,1711918239229,-419.86,0.000541,7]
[321155381,1711918239239,-419.86,0.000541,7]
[321155382,1711918239248,-419.86,0.000541,7]
[321155383,1711918239257,-419.86,0.000541,7]
[321155384,1711918239267,-419.86,0.000541,7]
[321155385,1711918239276,-419.86,0.000541,7]
[321155386,1711918239285,-153.25,0.000541,7]
[321155387,1711918239294,-153.25,0.000541,7]
[321155388,1711918239303,-153.26021312,0.00054132,60]
[321155389,1711918239312,-1390.83673626,0.00054397,2]
[321155390,1711918239322,-248.32001245,0.0005445,3]
[321155391,1711918239331,-155.74528116,0.00054451,60]
[321155392,1711918239341,-270.92242324,0.00054487,4]
[321155393,1711918239350,-155.51803474,0.00054487,4]
[321155394,1711918239359,-155.0,0.00054488,4]
[321155395,1711918239369,-2500.0,0.00054489,2]
[321155396,1711918239378,-1500.0,0.000545,120]
[321155397,1711918239387,-728.010963,0.00054589,14]
[321155398,1711918239396,-12851.89314074,0.00054589,120]
[321155399,1711918239406,-212.75616934,0.00054589,26]
[321155400,1711918239415,-55380.2781,0.00054589,2]
[321155401,1711918239425,-162.46,0.00054679,2]
[321155402,1711918239434,-154.13,0.00054679,120]
[321155403,1711918239444,-1562966.37998917,0.00054686,36]
[321155404,1711918239453,-1098126.30347795,0.00054686,4]
[321155405,1711918239470,-105888.24039495,0.00054686,4]
[321155406,1711918239499,-4014.32518592,0.00054686,4]
[321155411,1711918239968,-150.99,0.000484,10]
[321155412,1711918239977,-13610.902,0.00054686,4]
[321155413,1711918240080,-302.92,0.00051597,3]
[321155414,1711918240090,-408.658586,0.00054686,4]
[321155415,1711918240102,-294.723,0.00054686,4]
[321155416,1711918240308,-1624.8150569,0.00054686,4]
[321155429,1711918243275,-163.79841994,0.000426,2]
[321155430,1711918243285,-2232394.57597934,0.00054686,4]
[321155431,1711918243329,-23116.49453771,0.00054686,4]
[321155432,1711918243340,-6234.57729329,0.00054686,4]
[321155433,1711918243385,-1965.34300653,0.00054686,4]
[321155434,1711918243445,-355.13886,0.00054686,4]
[321155435,1711918243456,-26279.46127506,0.00054686,4]
[321155438,1711918245987,-168.07,0.000428,4]
[321155439,1711918245997,-168.07,0.000428,4]
[321155440,1711918246006,-1162.77127632,0.00054686,4]
[321155441,1711918246205,-168.07,0.000428,4]
[321155442,1711918246214,-168.07,0.000428,4]
[321155443,1711918246223,-168.07,0.000428,4]
[321155444,1711918246232,-2684.53581284,0.00054686,4]
[321155445,1711918246246,-1111.46137366,0.00054686,4]
[321155446,1711918246406,-1166752.88796848,0.00054686,4]
[321155447,1711918246499,-168.07,0.000428,4]
[321155448,1711918246509,-168.07,0.000428,4]
[321155449,1711918246518,-5364.17291637,0.00054686,4]
[321155450,1711918246530,-2549.37396514,0.00054686,4]
[321155451,1711918246544,-1295.90924965,0.00054686,4]
[321155452,1711918316459,23629.22193247,6.94e-05,2]
[321155454,1711918381292,406.65156577,0.0001,2]
[321155455,1711918385655,1904.50942371,6.94e-05,2]
[321155456,1711918388878,291.4422811,6.94e-05,2]
[321155459,1711918438028,349386.60125644,0.00025,2]
[321155461,1711918457020,-156.82445703,0.00033,120]
[321155462,1711918472721,7633.12047446,0.00042218,30]
[321155464,1711918476977,308.48334215,0.0002408,2]
[321155465,1711918485675,-218.35056216,0.00031,60]
[321155466,1711918492321,-156.51665685,0.00029999,2]
[321155467,1711918492341,-9059.85928181,0.0003,2]
[321155468,1711918492360,-3547.37025153,0.0003,7]
[321155470,1711919111468,-8167.38926332,0.00037706,4]
[321155497,1711919349821,-317.90071692,0.00037706,2]
[321155515,1711919432153,-217.5775,0.00037707,2]
[321155516,1711919432163,-161.63,0.00037808,2]
[321155517,1711919432173,-162.05,0.00037808,2]
[321155518,1711919432182,-76.67170426,0.00038969,2]
[321155519,1711919432193,-241.22901266,0.00038969,2]
[321155520,1711919432202,-310.35655033,0.0003897,2]
[321155521,1711919432214,-440.58623183,0.0003897,2]
[321155522,1711919432234,-690.84,0.0003897,2]
[321155523,1711919432274,-2099.60249921,0.0003897,2]
[321155524,1711919432283,-285.05,0.00039589,2]
[321155525,1711919432292,-150.0,0.00041127,4]
[321155526,1711919432301,-150.0,0.00041127,5]
[321155527,1711919432310,-12421.26,0.00041128,2]
[321155528,1711919432320,-159.31,0.00041158,2]
[321155529,1711919432329,-250.0,0.00041236,112]
[321155530,1711919432338,-1428.4,0.00041543,2]
[321155531,1711919432348,-150.09,0.00041575,2]
[321155532,1711919432357,-499.99,0.00041575,2]
[321155533,1711919432366,-155.55,0.00041589,2]
[321155534,1711919432375,-596.29,0.00041637,2]
[321155535,1711919432384,-831.28,0.00041784,2]
[321155536,1711919432393,-285.05,0.00041853,2]
[321155537,1711919432402,-155.55,0.00041899,2]
[321155538,1711919432411,-154.43108104,0.000419,2]
[321155539,1711919432421,-261.73583433,0.00042,2]
[321155540,1711919432430,-162.45,0.00042025,15]
[321155541,1711919432440,-244.39,0.00042119,2]
[321155542,1711919432449,-155.55,0.00042208,2]
[321155543,1711919432458,-1422.08325676,0.00042213,2]
[321155544,1711919432467,-14902.75300164,0.00042214,2]
[321155545,1711919432476,-676.80632837,0.00042214,10]
[321155546,1711919432486,-279.65,0.00042303,2]
[321155547,1711919432495,-279.65,0.00042303,2]
[321155548,1711919432504,-1878.23832117,0.00042313,3]
[321155551,1711919432516,-13084.39183701,0.00042313,3]
[321155553,1711919432526,-540.86955247,0.00042313,5]
[321155555,1711919432535,-1337.3687687,0.00042313,2]
[321155557,1711919432547,-400.50194204,0.00042313,2]
[321155560,1711919432563,-56007.56125954,0.00042313,2]
[321155562,1711919432572,-645.63038644,0.00042313,7]
[321155563,1711919432581,-113353.2293025,0.00042313,7]
[321155565,1711919432590,-18337.80263789,0.00042313,14]
[321155567,1711919432599,-1115.98769307,0.00042313,10]
[321155568,1711919432608,-1763.48197311,0.00042313,2]
[321155569,1711919432617,-1374.98423013,0.00042313,10]
[321155570,1711919432626,-532.03852694,0.00042313,2]
[321155571,1711919432635,-4898.13681948,0.00042313,2]
[321155572,1711919432644,-738.85617067,0.00042313,10]
[321155573,1711919432653,-353.91956168,0.00042313,2]
[321155574,1711919432662,-591.63747715,0.00042313,2]
[321155575,1711919432670,-3032.09827416,0.00042313,7]
[321155576,1711919432679,-161611.48070884,0.00042313,2]
[321155577,1711919432689,-192.28621157,0.00042313,7]
[321155578,1711919432697,-18936.72762934,0.00042313,3]
[321155579,1711919432706,-1784.70607232,0.00042313,2]
[321155580,1711919432715,-118049.07905891,0.00042313,14]
[321155581,1711919432724,-3832.89479173,0.00042313,3]
[321155582,1711919432733,-337.06952388,0.00042313,2]
[321155583,1711919432742,-1329.81484633,0.00042313,20]
[321155584,1711919432930,-1051.66325488,0.00042313,7]
[321155585,1711919432941,-5028.66795686,0.00042313,2]
[321155586,1711919432952,-1458.40708415,0.00042313,14]
[321155587,1711919432962,-204.69310846,0.00042313,5]
[321155588,1711919432972,-1003.6667417,0.00042313,2]
[321155589,1711919432982,-213.89584315,0.00042313,2]
[321155590,1711919432992,-636.29558818,0.00042313,2]
[321155591,1711919433003,-1002.79407176,0.00042313,2]
[321155592,1711919433013,-231.68827047,0.00042314,4]
[321155593,1711919433024,-203.8393956,0.00042314,4]
[321155594,1711919433034,-160.93111356,0.00042315,4]
[321155595,1711919433044,-230.27070736,0.00042315,4]
[321155596,1711919433054,-223.0269415,0.00042315,4]
[321155597,1711919433064,-265.26654513,0.00042321,4]
[321155598,1711919433074,-342.61894296,0.00042321,4]
[321155599,1711919433084,-1000.0,0.00042493,2]
[321155600,1711919433095,-155.55,0.00042518,2]
[321155601,1711919433105,-156.31,0.000428,4]
[321155602,1711919433115,-156.31,0.000428,4]
[321155603,1711919433125,-156.31,0.000428,4]
[321155604,1711919433137,-156.31,0.000428,4]
[321155605,1711919433147,-156.31,0.000428,4]
[321155606,1711919433157,-156.31,0.000428,4]
[321155607,1711919433167,-156.31,0.000428,4]
[321155608,1711919433178,-156.31,0.000428,4]
[321155609,1711919433188,-156.31,0.000428,4]
[321155610,1711919433198,-156.31,0.000428,4]
[321155611,1711919433208,-156.31,0.000428,4]
[321155612,1711919433218,-156.31,0.000428,4]
[321155613,1711919433228,-156.31,0.000428,4]
[321155614,1711919433238,-156.31,0.000428,4]
[321155615,1711919433247,-156.31,0.000428,4]
[321155616,1711919433256,-156.31,0.000428,4]
[321155617,1711919433266,-156.31,0.000428,4]
[321155618,1711919433276,-156.31,0.000428,4]
[321155619,1711919433286,-156.31,0.000428,4]
[321155620,1711919433296,-156.31,0.000428,4]
[321155621,1711919433308,-155.55,0.00042827,2]
[321155622,1711919433318,-150.09,0.00043111,2]
[321155623,1711919433329,-155.55,0.00043137,2]
[321155624,1711919433339,-155.55,0.00043447,2]
[321155625,1711919433349,-155.55,0.00043756,2]
[321155626,1711919433359,-157.69921316,0.00044031,30]
[321155627,1711919433370,-285.05,0.00044117,2]
[321155628,1711919433380,-154.13,0.00044169,2]
[321155629,1711919433390,-1422.08325668,0.00044178,2]
[321155630,1711919433404,-3301.32856163,0.00044179,2]
[321155631,1711919433434,-818.26057678,0.00044179,2]
[321155632,1711919433445,-485.80288671,0.00044179,2]
[321155663,1711919438257,-2748.55026948,0.00044179,2]
[321155677,1711919438468,-3680.49815949,0.00044179,2]
[321155678,1711919438479,-1860.10639059,0.00044179,2]
[321155679,1711919438526,-2008.20615688,0.00044179,2]
[321155680,1711919438535,-1055.61570712,0.00044283,2]
[321155681,1711919438547,-372.78429288,0.00044283,2]
[321155682,1711919438556,-154.43108104,0.000443,2]
[321155683,1711919438565,-676.80632835,0.00044467,11]
[321155684,1711919438575,-162.45,0.00044765,15]
[321155685,1711919438585,-380.64716324,0.00045,4]
[321155686,1711919438597,-1386.35282352,0.00045,4]
[321155690,1711919441370,-14228.45655835,0.00045,4]
[321155691,1711919441474,-798.84,0.00045,4]
[321155697,1711919443358,-318.36,0.00045,4]
[321155698,1711919443469,-980.1699823,0.00045,4]
[321155699,1711919443478,-168.63,0.00045498,2]
[321155700,1711919443487,-161.27445176,0.00045589,30]
[321155701,1711919443497,-1422.08325668,0.00046143,2]
[321155702,1711919443506,-1763.06003465,0.00046144,2]
[321155703,1711919443517,-5859.81104563,0.00046144,2]
[321155704,1711919443528,-4379.05894815,0.00046144,2]
[321155705,1711919443576,-2174.85450019,0.00046144,2]
[321155706,1711919443587,-725.96847294,0.00046144,2]
[321155707,1711919443596,-285.05,0.0004638,2]
[321155708,1711919443605,-154.43108104,0.000467,2]
[321155709,1711919443614,-676.80632835,0.00046719,12]
[321155710,1711919443623,-167.27,0.00047001,2]
[321155711,1711919443632,-279.65,0.00047013,2]
[321155713,1711919443641,-535.96961748,0.00047023,2]
[321155715,1711919443653,-892.43038252,0.00047023,2]
[321155717,1711919443662,-156.65046782,0.00047076,30]
[321155718,1711919443671,-153.26021313,0.0004735,30]
[321155720,1711919443680,-162.45,0.00047505,15]
[321155722,1711919443690,-1000.0,0.00047805,2]
[321155724,1711919443699,-151.0,0.00048,120]
[321155726,1711919443708,-1422.08325668,0.00048109,2]
[321155729,1711919443717,-14902.75300156,0.00048109,2]
[321155730,1711919443726,-156.31,0.000484,6]
[321155731,1711919443735,-156.31,0.000484,6]
[321155732,1711919443744,-156.31,0.000484,6]
[321155734,1711919443753,-156.31,0.000484,6]
[321155736,1711919443763,-156.31,0.000484,6]
[321155737,1711919443772,-156.31,0.000484,6]
[321155738,1711919443781,-156.31,0.000484,6]
[321155739,1711919443790,-156.31,0.000484,6]
[321155740,1711919443798,-156.31,0.000484,6]
[321155741,1711919443807,-156.31,0.000484,6]
[321155743,1711919443816,-156.31,0.000484,6]
[321155745,1711919443825,-156.31,0.000484,6]
[321155747,1711919443834,-156.31,0.000484,6]
[321155749,1711919443843,-156.31,0.000484,6]
[321155751,1711919443852,-156.31,0.000484,6]